bitfinex-derivatives/quotes_SOLF0:USTF0_20240906
["timestamp","ask_amount","ask_price","bid_price","bid_amount"]
[1725629416221,0.05531117,133.9,133.86,3.7356]
[1725629417026,0.05531117,133.9,133.85,3.79339867]
[1725629417429,0.05531117,133.9,133.86,35.82]
[1725629418228,0.05531117,133.9,133.86,39.48555663]
[1725629418437,0.05531117,133.9,133.87,3.7355]
[1725629418730,0.05531117,133.9,133.86,3.66555663]
[1725629418923,2.7126,133.99,133.88,35.82]
[1725629419123,2.7126,133.99,133.93,35.82]
[1725629419532,6.4449,133.99,133.93,39.5536]
[1725629419921,1.3624,133.99,133.95,35.82]
[1725629420229,1.2898,134.01,133.93,39.5416049]
[1725629420434,3.7326,133.98,133.93,3.7338]
[1725629421233,3.7331,133.96,133.91,35.82]
[1725629421428,1.3624,134.0,133.91,35.82]
[1725629421827,1.3624,134.0,133.93,35.82]
[1725629422032,1.3624,134.0,133.95,35.82]
[1725629422422,1.3624,134.0,133.93,39.55842674]
[1725629422622,1.3624,134.0,133.93,35.82]
[1725629423027,1.3624,134.0,133.96,3.7329]
[1725629423223,1.3624,134.0,133.93,35.82]
[1725629423629,1.3624,134.0,133.93,39.63722087]
[1725629423831,1.3624,134.0,133.95,35.82]
[1725629424033,0.05211388,133.98,133.95,35.82]
[1725629424432,0.05211388,133.98,133.96,3.7329]
[1725629425029,1.3836,134.03,133.97,35.82]
[1725629425232,1.3836,134.03,133.99,35.82]
[1725629425444,3.7318,134.01,133.96,35.87261617]
[1725629425639,1.3836,134.03,133.96,35.87261617]
[1725629425829,1.3836,134.03,133.97,35.82]
[1725629426439,1.3836,134.03,133.98,3.7322]
[1725629426633,1.3836,134.03,133.99,0.05021091]
[1725629427029,5.1146,134.03,133.99,0.05021091]
[1725629427437,1.3836,134.03,133.99,0.05021091]
[1725629427639,3.71080699,134.02,133.99,0.05021091]
[1725629427841,1.3836,134.03,133.99,0.05021091]
[1725629428240,3.7313,134.02,133.99,0.05021091]
[1725629428845,5.1147,134.03,133.99,0.05021091]
[1725629429843,7.47234292,134.02,133.99,0.05021091]
[1725629430239,3.7313,134.02,133.99,0.05021091]
[1725629430439,7.51527047,134.02,133.99,0.05021091]
[1725629430635,35.82,134.01,133.93,3.81722087]
[1725629430841,35.82,134.01,133.9,35.82]
[1725629431039,35.82,133.99,133.9,39.46622902]
[1725629431549,3.80562089,134.01,133.82,7.4733]
[1725629431550,35.82,133.97,133.88,35.82]
[1725629431845,3.80562089,134.01,133.87,39.55395054]
[1725629431846,37.1242,133.96,133.87,39.55395054]
[1725629432045,1.3147,133.95,133.87,35.82]
[1725629432236,3.734,133.93,133.88,3.7351]
[1725629432441,1.3147,133.95,133.88,3.7351]
[1725629432643,37.1242,133.96,133.9,35.82]
[1725629432644,1.3042,133.96,133.9,35.82]
[1725629432848,5.02881846,133.96,133.9,35.82]
[1725629433035,1.3042,133.96,133.9,35.82]
[1725629433240,37.1242,133.96,133.87,3.80898044]
[1725629433535,37.1242,133.96,133.86,35.82]
[1725629433536,40.82582169,133.96,133.86,35.82]
[1725629433945,5.00582169,133.96,133.88,35.82]
[1725629435052,5.00582169,133.96,133.9,35.82]
[1725629435246,40.82582169,133.96,133.86,35.82]
[1725629435439,35.82,133.94,133.85,3.70498408]
[1725629435642,40.82582169,133.96,133.86,35.82]
[1725629435844,1.3924,133.99,133.95,3.7332]
[1725629436147,3.68070013,133.98,133.91,35.82]
[1725629436340,3.7335,133.95,133.91,35.82]
[1725629436546,3.73001523,133.96,133.91,35.82]
[1725629436748,1.3924,133.99,133.93,35.82]
[1725629437042,0.04889902,133.96,133.91,35.82]
[1725629437345,5.05061151,133.99,133.91,35.82]
[1725629437740,5.05061151,133.99,133.93,35.82]
[1725629437947,2.7417,134.02,133.86,39.53581846]
[1725629437948,3.7317,134.01,133.96,3.7328]
[1725629438144,2.7417,134.02,133.96,35.82]
[1725629438447,0.0532078,134.0,133.96,35.82]
[1725629438753,0.0532078,134.0,133.98,35.82]
[1725629439140,0.0532078,134.0,133.98,39.5522]
[1725629439347,0.0532078,134.0,133.98,39.60597889]
[1725629439549,0.0532078,134.0,133.98,35.87377889]
[1725629439948,0.0532078,134.0,133.98,39.60607889]
[1725629440155,0.0532078,134.0,133.98,0.05377889]
[1725629441256,3.7321,133.99,133.94,3.7334]
[1725629441444,6.4113,133.99,133.94,3.7334]
[1725629442046,3.7331,133.96,133.93,35.82]
[1725629442246,2.6792,133.99,133.93,35.82]
[1725629442657,2.6792,133.99,133.94,35.82]
[1725629442859,1.3655,134.05,133.98,35.82]
[1725629443055,1.3655,134.05,134.0,35.82]
[1725629443555,3.77211711,134.09,134.02,35.82]
[1725629443752,3.77211711,134.09,134.04,39.5505]
[1725629443753,2.7342,134.09,134.04,39.5505]
[1725629443955,2.7342,134.09,134.04,35.82]
[1725629444153,0.05220974,134.07,134.04,35.82]
[1725629444363,0.05220974,134.07,134.01,3.64147779]
[1725629444364,0.05220974,134.07,134.06,35.82]
[1725629444547,1.3687,134.17,134.06,71.64]
[1725629444749,1.3687,134.17,134.11,35.82]
[1725629444950,1.3687,134.17,134.13,35.82]
[1725629445152,1.3687,134.17,134.11,35.82]
[1725629445352,1.3687,134.17,134.11,39.5488]
[1725629445562,1.3687,134.17,134.13,35.82]
[1725629445852,3.68290912,134.23,134.16,35.82]
[1725629446057,3.7251,134.25,134.17,3.7271]
[1725629446249,1.3845,134.25,134.16,35.82]
[1725629446455,1.3845,134.25,134.14,35.82]
[1725629446456,1.3483,134.24,134.14,35.82]
[1725629446652,0.05270887,134.21,134.15,3.7276]
[1725629447156,0.05270887,134.21,134.14,35.82]
[1725629447860,0.05270887,134.21,134.14,39.548]
[1725629448169,0.05270887,134.21,134.14,35.82]
[1725629448855,0.05270887,134.21,134.2,35.82]
[1725629449362,0.00490887,134.21,134.2,35.82]
[1725629449559,0.00490887,134.21,134.18,35.82]
[1725629450157,0.00490887,134.21,134.15,35.82]
[1725629450553,0.00490887,134.21,134.17,35.82]
[1725629450872,0.00490887,134.21,134.19,35.82]
[1725629451164,35.82,134.24,134.18,0.05341221]
[1725629451360,1.3836,134.26,134.18,0.05341221]
[1725629451557,1.3836,134.26,134.19,35.82]
[1725629451754,1.3836,134.26,134.19,39.5465]
[1725629451955,1.3836,134.26,134.19,35.82]
[1725629452153,263.82,134.32,134.21,35.82]
[1725629452352,3.73882511,134.28,134.21,35.82]
[1725629452557,7.46292511,134.28,134.21,39.59652251]
[1725629452867,2.685,134.31,134.23,35.82]
[1725629453259,3.7235,134.3,134.23,39.5454]
[1725629453854,6.4083,134.31,134.25,0.05531626]
[1725629454252,1.391,134.31,134.25,35.87531626]
[1725629454660,1.391,134.31,134.25,0.05531626]
[1725629455466,35.82,134.3,134.25,0.05531626]
[1725629456262,1.391,134.31,134.25,0.05531626]
[1725629456459,3.7238,134.3,134.25,0.05531626]
[1725629456768,1.391,134.31,134.25,0.05531626]
[1725629456960,1.391,134.31,134.26,3.7244]
[1725629457158,1.391,134.31,134.25,0.05531626]
[1725629457565,1.391,134.31,134.25,35.87531626]
[1725629457566,5.1144,134.31,134.25,35.87531626]
[1725629457763,1.391,134.31,134.25,0.05531626]
[1725629458162,3.7236,134.3,134.25,0.05531626]
[1725629458663,1.391,134.31,134.25,0.05531626]
[1725629459060,35.82,134.3,134.25,0.05531626]
[1725629459258,1.391,134.31,134.25,0.05531626]
[1725629460159,37.211,134.31,134.25,0.05531626]
[1725629460564,1.391,134.31,134.25,0.05531626]
[1725629461966,37.211,134.31,134.25,0.05531626]
[1725629462159,3.724,134.29,134.25,0.05531626]
[1725629462564,37.211,134.31,134.25,0.05531626]
[1725629462766,3.7242,134.28,134.25,0.05531626]
[1725629462961,1.391,134.31,134.25,0.05531626]
[1725629463269,5.1144,134.31,134.26,3.7244]
[1725629463474,1.391,134.31,134.25,35.87531626]
[1725629463674,1.391,134.31,134.25,0.05531626]
[1725629463863,3.7236,134.3,134.25,0.05531626]
[1725629464067,1.391,134.31,134.25,35.87531626]
[1725629464371,3.7235,134.3,134.25,3.78001626]
[1725629464574,1.391,134.31,134.25,0.05531626]
[1725629465076,3.7237,134.3,134.25,3.78001626]
[1725629465274,1.391,134.31,134.25,0.05531626]
[1725629465966,35.82,134.3,134.25,0.05531626]
[1725629466163,35.82,134.26,134.16,35.82]
[1725629466369,39.54457714,134.26,134.16,35.82]
[1725629466568,3.7259,134.22,134.16,35.82]
[1725629466774,35.82,134.22,134.12,35.9117]
[1725629467074,2.6401,134.21,134.12,39.61051534]
[1725629467672,3.63442434,134.2,134.16,0.05465757]
[1725629467870,0.05100653,134.18,134.16,35.87465757]
[1725629468066,0.05100653,134.18,134.17,35.82]
[1725629468288,0.05100653,134.18,134.17,39.5471]
[1725629468575,3.70669559,134.26,134.17,35.82]
[1725629468773,2.6401,134.29,134.2,35.82]
[1725629469078,2.6401,134.29,134.13,35.82]
[1725629469079,2.6401,134.29,134.22,35.82]
[1725629469376,3.7245,134.27,134.19,35.82]
[1725629469583,38.4601,134.29,134.13,35.82]
[1725629469584,38.4601,134.29,134.17,35.82]
[1725629469872,2.6401,134.29,134.24,0.0477109]
[1725629470380,2.6401,134.29,134.21,35.82]
[1725629470576,35.82,134.27,134.17,35.82]
[1725629470872,3.7246,134.26,134.25,0.04860416]
[1725629471179,0.05056574,134.23,134.15,35.82]
[1725629472473,35.87056574,134.23,134.18,0.05475772]
[1725629472774,35.87056574,134.23,134.16,3.7274]
[1725629472775,3.726,134.21,134.16,3.7274]
[1725629472978,1.2924,134.2,134.12,35.82]
[1725629473183,1.2924,134.2,134.07,0.09]
[1725629473184,35.82,134.19,134.1,39.48593983]
[1725629473478,35.82,134.19,134.1,35.82]
[1725629473682,35.82,134.15,134.06,35.82]
[1725629474180,39.56832469,134.15,134.06,35.82]
[1725629474478,35.82,134.11,134.02,35.82]
[1725629474776,1.3089,134.1,134.02,35.82]
[1725629475074,35.82,134.09,133.99,35.82]
[1725629475272,0.04799347,134.08,133.99,35.82]
[1725629475669,3.6805919,134.07,134.02,3.7311]
[1725629475981,35.82,134.09,133.99,35.82]
[1725629476282,0.05584028,134.06,133.99,35.82]
[1725629476682,0.05584028,134.06,134.0,3.7316]
[1725629476883,0.05584028,134.06,133.97,35.82]
[1725629477179,0.05584028,134.06,133.99,35.82]
[1725629477375,39.63642638,134.09,133.99,35.82]
[1725629477570,1.3089,134.1,134.01,35.82]
[1725629477775,0.05733992,134.04,134.03,35.82]
[1725629477973,1.3089,134.1,134.03,43.00733649]
[1725629478181,1.3089,134.1,134.03,46.69016742]
[1725629478775,1.3089,134.1,134.06,3.7299]
[1725629478980,1.3089,134.1,134.03,46.69016742]
[1725629479387,1.3089,134.1,134.07,3.7297]
[1725629479578,1.2785,134.12,134.06,42.95]
[1725629480180,3.81127254,134.14,134.08,42.95]
[1725629480181,0.04852867,134.1,134.08,42.95]
[1725629480483,0.04852867,134.1,134.09,3.7293]
[1725629481279,2.6118,134.2,134.08,43.00120659]
[1725629481486,2.6118,134.2,134.12,42.95]
[1725629481487,3.9678,134.2,134.12,42.95]
[1725629482081,2.6581,134.2,134.14,42.95]
[1725629482276,2.6581,134.2,134.14,46.62374541]
[1725629482475,1.356,134.2,134.15,0.05148027]
[1725629484884,5.0823,134.2,134.15,3.77908027]
[1725629485275,1.356,134.2,134.15,0.05148027]
[1725629485784,1.356,134.2,134.16,46.6773]
[1725629485982,1.356,134.2,134.16,42.95]
[1725629486381,1.356,134.2,134.15,0.05148027]
[1725629486884,1.356,134.2,134.17,3.727]
[1725629487087,3.6685249,134.23,134.15,0.05148027]
[1725629487279,1.3546,134.25,134.16,42.95]
[1725629487482,3.726,134.21,134.16,46.6773]
[1725629487884,3.78085675,134.23,134.16,42.95]
[1725629488085,1.3546,134.25,134.18,42.95]
[1725629488584,0.05041965,134.21,134.2,46.6761]
[1725629488787,0.05041965,134.21,134.18,42.95]
[1725629489191,1.3546,134.25,134.2,0.05414978]
[1725629489889,5.0797,134.25,134.2,3.78024978]
[1725629490090,1.3546,134.25,134.2,0.05414978]
[1725629490489,44.3046,134.25,134.13,46.7379412]
[1725629490689,3.7264,134.2,134.15,3.7276]
[1725629490882,7.48572356,134.2,134.15,3.7276]
[1725629491082,44.3046,134.25,134.16,42.95]
[1725629491083,1.3546,134.25,134.16,42.95]
[1725629491695,1.3546,134.25,134.18,42.95]
[1725629491881,1.3546,134.25,134.16,42.95]
[1725629491882,0.05178561,134.22,134.16,42.95]
[1725629492088,0.05178561,134.22,134.13,42.95]
[1725629492282,44.3046,134.25,134.13,42.95]
[1725629492485,1.3546,134.25,134.13,3.78615675]
[1725629492689,0.0540163,134.19,134.14,46.70969316]
[1725629493098,0.0540163,134.19,134.16,42.95]
[1725629493293,0.0540163,134.19,134.14,42.95]
[1725629493490,0.0540163,134.19,134.15,3.7275]
[1725629493794,0.0540163,134.19,134.14,42.95]
[1725629494182,0.0540163,134.19,134.15,3.7275]
[1725629494387,0.0540163,134.19,134.13,3.6635297]
[1725629494691,0.0540163,134.19,134.13,3.70117508]
[1725629494891,0.0540163,134.19,134.16,42.95]
[1725629495391,0.0540163,134.19,134.13,42.95]
[1725629495392,3.76454637,134.2,134.13,46.70858037]
[1725629495593,44.3046,134.25,134.13,46.70858037]
[1725629495895,0.05174617,134.19,134.11,42.95]
[1725629496095,3.80034237,134.18,134.11,42.95]
[1725629496291,7.52734237,134.18,134.13,3.728]
[1725629496493,3.80034237,134.18,134.11,42.95]
[1725629496797,1.3361,134.21,134.13,42.95]
[1725629496998,0.05257732,134.17,134.13,42.95]
[1725629497295,0.05257732,134.17,134.14,3.7279]
[1725629497596,0.05257732,134.17,134.13,42.95]
[1725629497793,0.05257732,134.17,134.16,3.7274]
[1725629498296,0.01977732,134.17,134.16,3.7274]
[1725629498501,1.3546,134.25,134.16,42.95]
[1725629498793,1.3546,134.25,134.2,42.95]
[1725629499293,1.3546,134.25,134.18,42.95]
[1725629499495,1.3546,134.25,134.18,46.6767]
[1725629499797,1.3546,134.25,134.18,42.95]
[1725629499996,1.3099,134.27,134.22,42.95]
[1725629500295,1.3316,134.3,134.25,42.95]
[1725629500504,1.3316,134.3,134.26,3.7245]
[1725629500800,1.3316,134.3,134.25,42.95]
[1725629500996,1.3316,134.3,134.25,46.6747]
[1725629501200,1.3316,134.3,134.27,0.0531601]
[1725629501394,1.3316,134.3,134.22,42.95]
[1725629501395,1.3316,134.3,134.24,3.725]
[1725629501596,0.05591879,134.29,134.22,42.95]
[1725629502597,3.70439085,134.29,134.24,3.725]
[1725629502888,0.05591879,134.29,134.25,42.95]
[1725629503292,0.05591879,134.29,134.25,46.6747]
[1725629503699,3.73270824,134.29,134.22,3.7256]
[1725629503894,0.05591879,134.29,134.22,3.7256]
[1725629504099,3.7242,134.28,134.22,3.7256]
[1725629504406,7.41440295,134.28,134.23,3.7254]
[1725629504598,3.724,134.29,134.22,42.95]
[1725629504791,7.363437,134.29,134.22,42.95]
[1725629504992,2.6754,134.32,134.25,42.95]
[1725629505296,6.39904182,134.32,134.25,42.95]
[1725629505499,2.6754,134.32,134.25,42.95]
[1725629505698,0.04770204,134.3,134.25,42.95]
[1725629506098,0.04770204,134.3,134.27,3.7242]
[1725629506304,0.04770204,134.3,134.25,42.95]
[1725629506502,0.04770204,134.3,134.27,3.7242]
[1725629506999,0.04770204,134.3,134.28,3.7241]
[1725629507706,0.04770204,134.3,134.23,46.6591109]
[1725629507905,3.77130204,134.3,134.23,42.95]
[1725629508093,0.04770204,134.3,134.24,3.725]
[1725629508293,3.7242,134.28,134.23,42.95]
[1725629508497,0.04770204,134.3,134.21,42.95]
[1725629508701,1.4072,134.29,134.19,46.76743496]
[1725629508906,1.4072,134.29,134.16,0.1584]
[1725629508907,44.3572,134.29,134.16,43.1084]
[1725629509105,1.3088,134.28,134.18,42.95]
[1725629509300,1.3088,134.28,134.16,0.1584]
[1725629509301,0.0491298,134.25,134.21,42.95]
[1725629510105,3.83527126,134.25,134.18,42.95]
[1725629510312,0.0491298,134.25,134.16,42.95]
[1725629510600,0.0491298,134.25,134.06,42.95]
[1725629510601,1.3676,134.24,134.14,42.95]
[1725629511000,0.05121176,134.22,134.15,3.73415897]
[1725629511196,0.05121176,134.22,134.16,42.95]
[1725629511498,0.05121176,134.22,134.11,0.2117]
[1725629511499,0.05121176,134.22,134.13,42.95]
[1725629511802,3.7261,134.21,134.15,3.7275]
[1725629512107,3.7261,134.21,134.13,46.65769144]
[1725629512295,0.05016048,134.19,134.15,3.7274]
[1725629512496,0.05016048,134.19,134.13,46.65769144]
[1725629512806,0.05016048,134.19,134.13,42.95]
[1725629513001,0.05016048,134.19,134.15,42.95]
[1725629513199,0.05016048,134.19,134.18,42.95]
[1725629514400,1.3088,134.28,134.18,42.95]
[1725629514598,1.3088,134.28,134.13,46.61854931]
[1725629514599,1.3088,134.28,134.2,42.95]
[1725629514898,1.3088,134.28,134.18,42.95]
[1725629515904,3.725,134.25,134.22,0.04885267]
[1725629516203,1.3088,134.28,134.22,0.04885267]
[1725629516406,5.0331,134.28,134.23,3.7254]
[1725629516713,1.3088,134.28,134.22,0.04885267]
[1725629517007,3.7248,134.26,134.22,0.04885267]
[1725629517404,1.3088,134.28,134.22,0.04885267]
[1725629517805,44.2588,134.28,134.22,0.04885267]
[1725629518911,42.99783593,134.26,134.16,42.95]
[1725629519416,3.726,134.21,134.18,3.7268]
[1725629519604,7.50087629,134.21,134.16,42.95]
[1725629519908,3.7264,134.2,134.13,42.95]
[1725629520104,7.48227148,134.2,134.13,46.71369699]
[1725629520301,0.05036176,134.2,134.13,46.71369699]
[1725629520503,0.05036176,134.2,134.16,42.95]
[1725629520705,0.05036176,134.2,134.19,42.95]
[1725629521010,5.0196483,134.3,134.19,42.95]
[1725629521204,5.0196483,134.3,134.23,42.95]
[1725629521401,5.0196483,134.3,134.21,42.95]
[1725629521602,5.0196483,134.3,134.18,42.95]
[1725629521603,47.9696483,134.3,134.18,42.95]
[1725629522009,8.7432483,134.3,134.18,42.95]
[1725629522202,5.0196483,134.3,134.23,0.04719444]
[1725629522707,5.0196483,134.3,134.21,46.63244051]
[1725629523114,5.0196483,134.3,134.26,3.7244]
[1725629523313,5.0196483,134.3,134.25,0.05377095]
[1725629523608,8.7432483,134.3,134.25,3.77847095]
[1725629524916,3.7238,134.29,134.25,3.77847095]
[1725629525116,5.0196483,134.3,134.25,0.05377095]
[1725629525316,3.7241,134.28,134.25,0.05377095]
[1725629525518,5.0196483,134.3,134.25,0.05377095]
[1725629525813,42.95,134.26,134.14,42.95]
[1725629526117,42.95,134.21,134.14,3.7279]
[1725629526317,3.7271,134.17,134.09,42.95]
[1725629526612,3.69755778,134.16,134.09,42.95]
[1725629526818,7.42505778,134.16,134.09,42.95]
[1725629527018,3.70724603,134.15,134.09,42.95]
[1725629527317,0.05318244,134.14,134.12,3.7283]
[1725629527911,3.70450227,134.16,134.11,3.7288]
[1725629528115,2.7316,134.2,134.09,42.95]
[1725629528307,0.05512599,134.14,134.09,42.95]
[1725629528823,0.05512599,134.14,134.08,3.7295]
[1725629529021,0.05512599,134.14,134.06,42.95]
[1725629529210,0.05512599,134.14,134.11,42.95]
[1725629529813,0.05512599,134.14,134.12,3.7284]
[1725629530016,0.05512599,134.14,134.09,42.95]
[1725629530413,0.05512599,134.14,134.11,3.7288]
[1725629531022,0.05512599,134.14,134.11,42.95]
[1725629531522,0.05512599,134.14,134.08,42.95]
[1725629532319,42.95,134.12,133.97,3.65097965]
[1725629532516,3.7298,134.08,134.0,42.95]
[1725629532724,3.95,134.11,134.02,42.95]
[1725629533023,42.95,134.1,134.0,46.6818]
[1725629533226,42.95,134.1,134.0,3.7318]
[1725629533227,0.05242024,134.08,134.0,3.7318]
[1725629533426,0.05242024,134.08,133.97,42.95]
[1725629533827,0.05242024,134.08,134.0,42.95]
[1725629534025,3.77834617,134.1,134.01,3.7316]
[1725629534215,46.9,134.11,134.02,42.95]
[1725629534527,0.04921272,134.05,134.02,46.6812]
[1725629534827,3.76427875,134.07,134.02,42.95]
[1725629535014,3.7295,134.09,134.02,42.95]
[1725629535220,3.75569388,134.09,134.02,42.95]
[1725629535519,0.05446777,134.05,134.02,42.95]
[1725629535921,3.80794961,134.09,134.0,42.95]
[1725629536123,46.9,134.11,134.0,42.95]
[1725629536324,0.05264696,134.05,134.0,42.95]
[1725629537017,0.05264696,134.05,134.02,3.7311]
[1725629537725,0.05264696,134.05,134.01,3.7313]
[1725629538033,0.05264696,134.05,134.0,42.95]
[1725629539033,0.05264696,134.05,134.02,42.95]
[1725629540428,0.05264696,134.05,134.04,3.7307]
[1725629540629,1.3087,134.11,134.04,42.95]
[1725629540923,3.7296,134.09,134.04,3.7306]
[1725629541123,4.98108212,134.11,134.02,42.95]
[1725629541524,47.93108212,134.11,134.0,42.95]
[1725629541730,47.93108212,134.11,134.0,46.66044563]
[1725629542126,4.98108212,134.11,134.02,42.95]
[1725629542632,4.98108212,134.11,134.0,3.71044563]
[1725629542633,42.95,134.09,133.97,42.95]
[1725629542823,2.6739,134.08,133.97,42.95]
[1725629543023,2.6739,134.08,134.02,42.95]
[1725629543327,47.93108212,134.11,134.04,42.95]
[1725629543328,4.98108212,134.11,134.04,42.95]
[1725629544025,4.98108212,134.11,134.06,0.04813226]
[1725629544225,3.7299,134.07,134.06,0.04813226]
[1725629545731,47.93108212,134.11,134.06,0.04813226]
[1725629546227,47.93108212,134.11,133.99,42.95]
[1725629546423,42.95,134.09,133.99,42.95]
[1725629546620,42.95,134.09,133.97,42.95]
[1725629546828,42.95,134.07,133.97,42.95]
[1725629547032,1.2752,134.06,133.97,42.95]
[1725629547335,3.7314,134.02,133.98,3.7323]
[1725629547626,3.7314,134.02,133.96,42.95]
[1725629547627,3.65949414,134.02,133.96,42.95]
[1725629547826,0.05531091,134.03,133.96,42.95]
[1725629548022,3.81475671,134.02,133.96,42.95]
[1725629548829,0.05531091,134.03,133.94,43.1113]
[1725629549026,1.3935,134.01,133.92,42.95]
[1725629549221,1.3935,134.01,133.9,42.95]
[1725629549429,44.3435,134.01,133.9,42.95]
[1725629549624,44.3435,134.01,133.95,0.05641077]
[1725629549830,3.78839666,133.97,133.95,0.05641077]
[1725629550035,0.05559666,133.97,133.95,0.05641077]
[1725629552037,7.53650227,133.96,133.95,0.05641077]
[1725629552234,3.80350227,133.96,133.95,0.05641077]
[1725629553438,0.05559666,133.97,133.88,42.95]
[1725629554042,1.3686,133.99,133.88,42.95]
[1725629554242,42.95,133.98,133.86,42.95]
[1725629554442,1.3686,133.99,133.86,42.95]
[1725629554443,42.95,133.97,133.86,42.95]
[1725629554644,3.7332,133.95,133.91,3.7343]
[1725629554845,1.3686,133.99,133.9,42.95]
[1725629555034,0.05316253,133.93,133.9,42.95]
[1725629555245,1.3686,133.99,133.92,42.95]
[1725629555939,1.3935,134.01,133.92,42.95]
[1725629556347,3.7323,133.99,133.92,42.95]
[1725629556541,1.3935,134.01,133.92,42.95]
[1725629556847,0.04830512,133.98,133.92,42.95]
[1725629557154,0.04830512,133.98,133.9,42.95]
[1725629557340,3.78090512,133.98,133.93,3.7337]
[1725629557748,3.7326,133.98,133.93,3.7337]
[1725629558051,3.78885727,133.97,133.92,3.7339]
[1725629558352,3.7333,133.95,133.9,3.7344]
[1725629558651,7.40003461,133.95,133.9,3.7344]
[1725629558957,3.7336,133.94,133.89,3.7348]
[1725629559348,3.78692867,133.94,133.89,3.7348]
[1725629559555,0.05332867,133.94,133.9,3.7344]
[1725629559851,0.05332867,133.94,133.88,42.95]
[1725629560053,3.734,133.93,133.88,3.735]
[1725629560246,1.36602867,133.94,133.86,42.95]
[1725629560648,3.7345,133.91,133.86,46.6856]
[1725629561146,1.3127,133.94,133.88,42.95]
[1725629561553,3.734,133.93,133.88,46.685]
[1725629561751,0.04696524,133.9,133.88,42.95]
[1725629562155,5.0462,133.94,133.89,3.7819321]
[1725629562453,5.0462,133.94,133.89,0.0471321]
[1725629562650,2.6373,133.98,133.94,3.7334]
[1725629562853,1.2979,133.98,133.93,42.95]
[1725629563045,4.98757118,133.98,133.91,42.95]
[1725629563251,3.7337,133.94,133.89,3.7348]
[1725629563449,7.42374474,133.94,133.88,42.95]
[1725629563649,3.7334,133.95,133.88,42.95]
[1725629563857,3.7334,133.95,133.9,3.7346]
[1725629564057,1.2807,133.97,133.9,0.05382498]
[1725629564250,3.7333,133.95,133.9,3.78832498]
[1725629564445,3.71059065,133.94,133.9,3.78832498]
[1725629564649,1.2807,133.97,133.9,0.05382498]
[1725629564852,3.7341,133.92,133.9,0.05382498]
[1725629565247,3.7344,133.91,133.9,0.05382498]
[1725629566947,3.735,133.89,133.84,42.95]
[1725629567149,0.05319463,133.92,133.79,42.95]
[1725629567150,42.95,133.9,133.79,42.95]
[1725629567351,3.7355,133.87,133.79,42.95]
[1725629567552,42.95,133.88,133.79,3.7375]
[1725629567857,1.3965,133.87,133.75,46.674786]
[1725629568160,1.3965,133.87,133.8,35.89]
[1725629568354,337.0,133.96,133.84,35.89]
[1725629568556,0.04711112,133.85,133.84,39.6263]
[1725629568757,2.7429,133.93,133.84,35.89]
[1725629569057,4.0951,133.93,133.86,35.89]
[1725629569361,7.79242127,133.93,133.86,35.89]
[1725629569668,7.79242127,133.93,133.84,35.89]
[1725629569960,7.79242127,133.93,133.86,35.89]
[1725629570158,7.79242127,133.93,133.86,43.06]
[1725629570655,7.79242127,133.93,133.88,0.04742204]
[1725629571256,43.06,133.92,133.88,0.04742204]
[1725629571850,7.79242127,133.93,133.88,0.04742204]
[1725629573253,0.04999645,133.92,133.88,0.04742204]
[1725629573961,3.78409645,133.92,133.88,0.04742204]
[1725629574560,0.04999645,133.92,133.88,0.04742204]
[1725629574859,43.06,133.9,133.79,46.80159408]
[1725629575059,43.06,133.88,133.77,43.06]
[1725629575258,43.06,133.86,133.78,3.7378]
[1725629575459,43.06,133.83,133.72,3.69429881]